[Event "Titled Tuesday Blitz August 17 2021"]
[White "TheKingDoctor"]
[Black "Shishkov, Andrei"]
[BlackFideId "4500563"]
[WhiteElo "2246"]
[BlackElo "2322"]
[Result "0-1"]
[Round "11"]
[TimeControl "180+1"]
[Date "2021.08.18"]
[WhiteClock "0:00:07"]
[BlackClock "0:00:12"]

1. e4 {[%clk 0:03:00]}  d5 {[%clk 0:02:58]} 2. exd5 {[%clk 0:02:59]}  Nf6 {[%clk 0:02:58]} 3. c4 {[%clk 0:02:57]}  e6 {[%clk 0:02:58]} 4. d4 {[%clk 0:02:58]}  exd5 {[%clk 0:02:58]} 5. Nc3 {[%clk 0:02:58]}  Bb4 {[%clk 0:02:58]} 6. Nf3 {[%clk 0:02:59]}  O-O {[%clk 0:02:57]} 7. Be2 {[%clk 0:02:59]}  dxc4 {[%clk 0:02:58]} 8. Bxc4 {[%clk 0:02:59]}  Nc6 {[%clk 0:02:45]} 9. Be3 {[%clk 0:02:59]}  Bg4 {[%clk 0:02:44]} 10. O-O {[%clk 0:02:57]}  Bxf3 {[%clk 0:02:40]} 11. Qxf3 {[%clk 0:02:58]}  Nxd4 {[%clk 0:02:41]} 12. Qxb7 {[%clk 0:02:53]}  Rb8 {[%clk 0:02:30]} 13. Qxa7 {[%clk 0:02:51]}  c5 {[%clk 0:02:17]} 14. Bxd4 {[%clk 0:02:37]}  cxd4 {[%clk 0:02:16]} 15. Rad1 {[%clk 0:02:37]}  Rb6 {[%clk 0:02:06]} 16. Na4 {[%clk 0:02:26]}  Rd6 {[%clk 0:02:03]} 17. a3 {[%clk 0:02:21]}  Ba5 {[%clk 0:01:59]} 18. b4 {[%clk 0:02:20]}  Bc7 {[%clk 0:01:57]} 19. b5 {[%clk 0:02:20]}  Ng4 {[%clk 0:01:40]} 20. h3 {[%clk 0:01:56]}  Ne5 {[%clk 0:01:20]} 21. Bd3 {[%clk 0:01:56]}  Bb8 {[%clk 0:01:01]} 22. Qb7 {[%clk 0:01:55]}  Qf6 {[%clk 0:00:52]} 23. Qe4 {[%clk 0:01:45]}  g6 {[%clk 0:00:30]} 24. Rfe1 {[%clk 0:01:40]}  Nxd3 {[%clk 0:00:25]} 25. Rxd3 {[%clk 0:01:35]}  Re6 {[%clk 0:00:23]} 26. g3 {[%clk 0:00:36]}  Rxe4 {[%clk 0:00:20]} 27. Rxe4 {[%clk 0:00:37]}  Rd8 {[%clk 0:00:20]} 28. Nc5 {[%clk 0:00:30]}  Qb6 {[%clk 0:00:19]} 29. Na6 {[%clk 0:00:06]}  Qxb5 {[%clk 0:00:18]} 30. Rexd4 {[%clk 0:00:04]}  Rxd4 {[%clk 0:00:17]} 31. Rxd4 {[%clk 0:00:05]}  Qxa6 {[%clk 0:00:17]} 32. Rd8+ {[%clk 0:00:05]}  Kg7 {[%clk 0:00:18]} 33. Rxb8 {[%clk 0:00:06]}  Qxa3 {[%clk 0:00:18]} 34. Rb1 {[%clk 0:00:06]}  Qd3 {[%clk 0:00:17]} 35. Re1 {[%clk 0:00:04]}  Qd2 {[%clk 0:00:17]} 36. Re3 {[%clk 0:00:02]}  h5 {[%clk 0:00:16]} 37. h4 {[%clk 0:00:02]}  f5 {[%clk 0:00:15]} 38. Kg2 {[%clk 0:00:02]}  Qd5+ {[%clk 0:00:14]} 39. Kh2 {[%clk 0:00:02]}  Kf6 {[%clk 0:00:14]} 40. Re1 {[%clk 0:00:03]}  Qd2 {[%clk 0:00:14]} 41. Rf1 {[%clk 0:00:03]}  Ke5 {[%clk 0:00:14]} 42. Kg2 {[%clk 0:00:03]}  Qd5+ {[%clk 0:00:13]} 43. Kg1 {[%clk 0:00:02]}  Qf3 {[%clk 0:00:13]} 44. Re1+ {[%clk 0:00:03]}  Kd4 {[%clk 0:00:13]} 45. Rf1 {[%clk 0:00:02]}  Kd3 {[%clk 0:00:13]} 46. Ra1 {[%clk 0:00:02]}  Ke4 {[%clk 0:00:10]} 47. Ra4+ {[%clk 0:00:02]}  Kd5 {[%clk 0:00:10]} 48. Ra5+ {[%clk 0:00:02]}  Kc6 {[%clk 0:00:10]} 49. Ra1 {[%clk 0:00:03]}  Kd5 {[%clk 0:00:10]} 50. Re1 {[%clk 0:00:03]}  Qc3 {[%clk 0:00:09]} 51. Rd1+ {[%clk 0:00:02]}  Ke4 {[%clk 0:00:08]} 52. Re1+ {[%clk 0:00:03]}  Kf3 {[%clk 0:00:08]} 53. Re3+ {[%clk 0:00:03]}  Qxe3 {[%clk 0:00:08]} 54. fxe3 {[%clk 0:00:04]}  Kxg3 {[%clk 0:00:08]} 55. Kf1 {[%clk 0:00:03]}  Kxh4 {[%clk 0:00:08]} 56. Ke2 {[%clk 0:00:04]}  Kg4 {[%clk 0:00:09]} 57. Kd3 {[%clk 0:00:04]}  h4 {[%clk 0:00:09]} 58. Kd4 {[%clk 0:00:05]}  h3 {[%clk 0:00:09]} 59. e4 {[%clk 0:00:05]}  fxe4 {[%clk 0:00:08]} 60. Ke5 {[%clk 0:00:05]}  h2 {[%clk 0:00:09]} 61. Kf6 {[%clk 0:00:05]}  h1=Q {[%clk 0:00:10]} 62. Kg7 {[%clk 0:00:05]}  Qf3 {[%clk 0:00:11]} 63. Kh8 {[%clk 0:00:05]}  e3 {[%clk 0:00:12]} 64. Kg7 {[%clk 0:00:05]}  e2 {[%clk 0:00:12]} 65. Kh8 {[%clk 0:00:06]}  e1=Q {[%clk 0:00:13]} 66. Kg7 {[%clk 0:00:06]}  Qe7+ {[%clk 0:00:13]} 67. Kh8 {[%clk 0:00:07]}  Qff8# {[%clk 0:00:12]} 0-1


[Site "https://www.chess.com"]

[Event "Titled Tuesday Blitz August 17 2021"]
[White "Thing, Bibek"]
[Black "Hansen, Sune Berg"]
[WhiteFideId "12303135"]
[BlackFideId "1400266"]
[WhiteElo "2000"]
[BlackElo "2634"]
[Result "0-1"]
[Round "11"]
[TimeControl "180+1"]
[Date "2021.08.17"]
[WhiteClock "0:00:03"]
[BlackClock "0:00:47"]

1. e4 {[%clk 0:03:00]}  c5 {[%clk 0:02:58]} 2. Nf3 {[%clk 0:03:00]}  e6 {[%clk 0:02:58]} 3. g3 {[%clk 0:03:00]}  Nc6 {[%clk 0:02:56]} 4. Bg2 {[%clk 0:03:00]}  d6 {[%clk 0:02:56]} 5. O-O {[%clk 0:02:59]}  Bd7 {[%clk 0:02:55]} 6. c3 {[%clk 0:02:58]}  Nf6 {[%clk 0:02:54]} 7. Qe2 {[%clk 0:02:58]}  Rc8 {[%clk 0:02:51]} 8. Rd1 {[%clk 0:02:58]}  Be7 {[%clk 0:02:47]} 9. d4 {[%clk 0:02:58]}  cxd4 {[%clk 0:02:48]} 10. Nxd4 {[%clk 0:02:58]}  Qc7 {[%clk 0:02:37]} 11. Na3 {[%clk 0:02:36]}  a6 {[%clk 0:02:34]} 12. Bg5 {[%clk 0:02:31]}  O-O {[%clk 0:02:28]} 13. Nac2 {[%clk 0:02:18]}  Rfe8 {[%clk 0:02:22]} 14. Rac1 {[%clk 0:02:14]}  h6 {[%clk 0:02:14]} 15. Be3 {[%clk 0:02:04]}  Ne5 {[%clk 0:02:13]} 16. Ne1 {[%clk 0:01:46]}  Nc4 {[%clk 0:02:09]} 17. b3 {[%clk 0:01:29]}  Nxe3 {[%clk 0:02:08]} 18. Qxe3 {[%clk 0:01:30]}  Bf8 {[%clk 0:02:04]} 19. c4 {[%clk 0:01:29]}  Qc5 {[%clk 0:01:52]} 20. a4 {[%clk 0:01:17]}  Ng4 {[%clk 0:01:45]} 21. Qe2 {[%clk 0:01:15]}  Ne5 {[%clk 0:01:42]} 22. h3 {[%clk 0:01:09]}  Be7 {[%clk 0:01:39]} 23. Kh2 {[%clk 0:01:07]}  Bf6 {[%clk 0:01:31]} 24. f4 {[%clk 0:01:03]}  Nc6 {[%clk 0:01:23]} 25. Ndc2 {[%clk 0:01:00]}  Rcd8 {[%clk 0:01:11]} 26. Nd3 {[%clk 0:00:44]}  Qb6 {[%clk 0:01:11]} 27. Ra1 {[%clk 0:00:43]}  Bxa1 {[%clk 0:01:07]} 28. Nxa1 {[%clk 0:00:41]}  a5 {[%clk 0:01:01]} 29. Nc1 {[%clk 0:00:18]}  Bc8 {[%clk 0:00:56]} 30. Na2 {[%clk 0:00:17]}  d5 {[%clk 0:00:53]} 31. cxd5 {[%clk 0:00:15]}  exd5 {[%clk 0:00:53]} 32. e5 {[%clk 0:00:16]}  d4 {[%clk 0:00:53]} 33. Qc4 {[%clk 0:00:13]}  Be6 {[%clk 0:00:52]} 34. Qb5 {[%clk 0:00:10]}  Qxb5 {[%clk 0:00:50]} 35. axb5 {[%clk 0:00:11]}  Na7 {[%clk 0:00:50]} 36. b6 {[%clk 0:00:09]}  Nc6 {[%clk 0:00:50]} 37. Rd2 {[%clk 0:00:02]}  Bd5 {[%clk 0:00:50]} 38. Bxd5 {[%clk 0:00:01]}  Rxd5 {[%clk 0:00:50]} 39. Kg2 {[%clk 0:00:01]}  Rb5 {[%clk 0:00:49]} 40. Nc2 {[%clk 0:00:01]}  Rxb3 {[%clk 0:00:47]} 41. Nxd4 {[%clk 0:00:01]}  Nxd4 {[%clk 0:00:46]} 42. Rxd4 {[%clk 0:00:01]}  Rb2+ {[%clk 0:00:47]} 43. Kf3 {[%clk 0:00:02]}  Rxa2 {[%clk 0:00:47]} 44. Rd7 {[%clk 0:00:03]}  Rb2 {[%clk 0:00:47]} 45. Rxb7 {[%clk 0:00:03]}  a4 {[%clk 0:00:47]} 0-1


[Site "https://www.chess.com"]

[Event "Titled Tuesday Blitz August 17 2021"]
[White "Timofeev, Artyom"]
[Black "Siva Mahadevan"]
[WhiteFideId "4140419"]
[BlackFideId "25043153"]
[WhiteElo "2582"]
[BlackElo "2203"]
[Result "1-0"]
[Round "11"]
[TimeControl "180+1"]
[Date "2021.08.17"]
[WhiteClock "0:01:20"]
[BlackClock "0:00:43"]

1. c4 {[%clk 0:03:00]}  Nf6 {[%clk 0:02:59]} 2. Nc3 {[%clk 0:03:00]}  c5 {[%clk 0:02:57]} 3. Nf3 {[%clk 0:02:59]}  d5 {[%clk 0:02:57]} 4. cxd5 {[%clk 0:02:58]}  Nxd5 {[%clk 0:02:58]} 5. Qa4+ {[%clk 0:02:59]}  Nc6 {[%clk 0:02:51]} 6. Ne5 {[%clk 0:02:58]}  Bd7 {[%clk 0:02:34]} 7. Nxd7 {[%clk 0:02:27]}  Qxd7 {[%clk 0:02:35]} 8. d3 {[%clk 0:02:20]}  Ndb4 {[%clk 0:02:26]} 9. g3 {[%clk 0:02:13]}  Nd4 {[%clk 0:02:10]} 10. Qxd7+ {[%clk 0:02:12]}  Kxd7 {[%clk 0:02:11]} 11. Kd1 {[%clk 0:02:12]}  e6 {[%clk 0:02:06]} 12. Bg2 {[%clk 0:02:12]}  Be7 {[%clk 0:02:06]} 13. Bxb7 {[%clk 0:02:06]}  Rab8 {[%clk 0:02:06]} 14. Bg2 {[%clk 0:02:06]}  Rhc8 {[%clk 0:02:05]} 15. Bd2 {[%clk 0:01:57]}  c4 {[%clk 0:01:45]} 16. dxc4 {[%clk 0:01:57]}  Rxc4 {[%clk 0:01:46]} 17. Rc1 {[%clk 0:01:56]}  Bf6 {[%clk 0:01:41]} 18. a3 {[%clk 0:01:49]}  Nbc6 {[%clk 0:01:17]} 19. Ne4 {[%clk 0:01:48]}  Rxc1+ {[%clk 0:01:10]} 20. Bxc1 {[%clk 0:01:49]}  Be7 {[%clk 0:01:09]} 21. e3 {[%clk 0:01:42]}  Nb3 {[%clk 0:01:09]} 22. Kc2 {[%clk 0:01:42]}  Nca5 {[%clk 0:01:09]} 23. Rd1+ {[%clk 0:01:42]}  Ke8 {[%clk 0:01:10]} 24. Bf1 {[%clk 0:01:32]}  f5 {[%clk 0:01:03]} 25. Nc3 {[%clk 0:01:31]}  Rc8 {[%clk 0:00:59]} 26. Bd2 {[%clk 0:01:28]}  Bf6 {[%clk 0:00:57]} 27. Be1 {[%clk 0:01:28]}  Ke7 {[%clk 0:00:56]} 28. Kb1 {[%clk 0:01:27]}  Rb8 {[%clk 0:00:55]} 29. Ka2 {[%clk 0:01:27]}  Rb7 {[%clk 0:00:50]} 30. h4 {[%clk 0:01:26]}  g6 {[%clk 0:00:49]} 31. Nb5 {[%clk 0:01:20]}  a6 {[%clk 0:00:43]} 32. Bb4+ {[%clk 0:01:20]} 1-0


[Site "https://www.chess.com"]

[Event "Titled Tuesday Blitz August 17 2021"]
[White "Tristan, Leonardo"]
[Black "Chigaev, Maksim"]
[WhiteFideId "113816"]
[BlackFideId "4108116"]
[WhiteElo "2404"]
[BlackElo "2579"]
[Result "1-0"]
[Round "11"]
[TimeControl "180+1"]
[Date "2021.08.17"]
[WhiteClock "0:00:02"]
[BlackClock "0:00:01"]

1. d4 {[%clk 0:03:00]}  Nf6 {[%clk 0:03:00]} 2. Nf3 {[%clk 0:03:01]}  g6 {[%clk 0:03:00]} 3. Bf4 {[%clk 0:03:01]}  Bg7 {[%clk 0:02:59]} 4. e3 {[%clk 0:03:02]}  O-O {[%clk 0:02:57]} 5. Be2 {[%clk 0:03:02]}  c5 {[%clk 0:02:58]} 6. O-O {[%clk 0:03:02]}  Qb6 {[%clk 0:02:56]} 7. Nbd2 {[%clk 0:03:01]}  d6 {[%clk 0:02:55]} 8. c3 {[%clk 0:02:56]}  Nd5 {[%clk 0:02:40]} 9. Bg3 {[%clk 0:02:35]}  Qxb2 {[%clk 0:02:05]} 10. Nc4 {[%clk 0:02:34]}  Qb5 {[%clk 0:02:05]} 11. Nxd6 {[%clk 0:02:05]}  Qd7 {[%clk 0:02:00]} 12. Ne4 {[%clk 0:01:27]}  cxd4 {[%clk 0:01:51]} 13. cxd4 {[%clk 0:01:28]}  b6 {[%clk 0:01:51]} 14. Qb3 {[%clk 0:01:22]}  Ba6 {[%clk 0:01:44]} 15. Bxa6 {[%clk 0:00:59]}  Nxa6 {[%clk 0:01:45]} 16. Rfc1 {[%clk 0:00:59]}  Rac8 {[%clk 0:01:39]} 17. Be5 {[%clk 0:00:55]}  Qb7 {[%clk 0:01:24]} 18. h3 {[%clk 0:00:36]}  Nb8 {[%clk 0:00:59]} 19. Nc5 {[%clk 0:00:24]}  Qa8 {[%clk 0:00:57]} 20. Nd3 {[%clk 0:00:22]}  Nd7 {[%clk 0:00:52]} 21. Bxg7 {[%clk 0:00:20]}  Kxg7 {[%clk 0:00:53]} 22. e4 {[%clk 0:00:19]}  N5f6 {[%clk 0:00:52]} 23. e5 {[%clk 0:00:20]}  Nd5 {[%clk 0:00:49]} 24. e6 {[%clk 0:00:12]}  fxe6 {[%clk 0:00:44]} 25. Ng5 {[%clk 0:00:13]}  Rc6 {[%clk 0:00:33]} 26. Rxc6 {[%clk 0:00:08]}  Qxc6 {[%clk 0:00:34]} 27. Re1 {[%clk 0:00:09]}  Rf6 {[%clk 0:00:18]} 28. Nb4 {[%clk 0:00:04]}  Nxb4 {[%clk 0:00:14]} 29. Qxb4 {[%clk 0:00:05]}  Qd6 {[%clk 0:00:11]} 30. Qb3 {[%clk 0:00:04]}  Nf8 {[%clk 0:00:11]} 31. Ne4 {[%clk 0:00:04]}  Qxd4 {[%clk 0:00:10]} 32. Nxf6 {[%clk 0:00:05]}  exf6 {[%clk 0:00:10]} 33. Qa3 {[%clk 0:00:05]}  Qd7 {[%clk 0:00:08]} 34. Re3 {[%clk 0:00:02]}  Qd1+ {[%clk 0:00:06]} 35. Kh2 {[%clk 0:00:03]}  Qd7 {[%clk 0:00:06]} 36. Rd3 {[%clk 0:00:03]}  Qc7+ {[%clk 0:00:05]} 37. Qd6 {[%clk 0:00:03]}  Qf7 {[%clk 0:00:04]} 38. Qb8 {[%clk 0:00:02]}  g5 {[%clk 0:00:04]} 39. Rc3 {[%clk 0:00:02]}  Kh6 {[%clk 0:00:03]} 40. Rc7 {[%clk 0:00:02]}  Qg7 {[%clk 0:00:01]} 41. Rxg7 {[%clk 0:00:02]} 1-0


[Site "https://www.chess.com"]

[Event "Titled Tuesday Blitz August 17 2021"]
[White "Urazayev, Arystanbek"]
[Black "Kamsky, Gata"]
[WhiteFideId "13709810"]
[BlackFideId "2000024"]
[WhiteElo "2321"]
[BlackElo "2644"]
[Result "1/2-1/2"]
[Round "11"]
[TimeControl "180+1"]
[Date "2021.08.17"]
[WhiteClock "0:00:23"]
[BlackClock "0:00:16"]

1. e4 {[%clk 0:03:00]}  c5 {[%clk 0:02:55]} 2. Nf3 {[%clk 0:02:57]}  e6 {[%clk 0:02:55]} 3. c3 {[%clk 0:02:58]}  d5 {[%clk 0:02:55]} 4. exd5 {[%clk 0:02:59]}  exd5 {[%clk 0:02:55]} 5. Bb5+ {[%clk 0:02:58]}  Bd7 {[%clk 0:02:54]} 6. Bxd7+ {[%clk 0:02:58]}  Qxd7 {[%clk 0:02:50]} 7. O-O {[%clk 0:02:59]}  Nc6 {[%clk 0:02:50]} 8. d4 {[%clk 0:02:59]}  c4 {[%clk 0:02:43]} 9. b3 {[%clk 0:02:57]}  cxb3 {[%clk 0:02:42]} 10. axb3 {[%clk 0:02:58]}  Bd6 {[%clk 0:02:42]} 11. Qd3 {[%clk 0:02:52]}  Nge7 {[%clk 0:02:41]} 12. Be3 {[%clk 0:02:40]}  O-O {[%clk 0:02:39]} 13. Nbd2 {[%clk 0:02:40]}  a6 {[%clk 0:02:38]} 14. b4 {[%clk 0:02:37]}  Na7 {[%clk 0:02:37]} 15. Nb3 {[%clk 0:02:36]}  Nb5 {[%clk 0:02:26]} 16. Nc5 {[%clk 0:02:29]}  Qc8 {[%clk 0:02:25]} 17. Ne5 {[%clk 0:02:24]}  Rd8 {[%clk 0:02:05]} 18. Rfe1 {[%clk 0:02:17]}  f6 {[%clk 0:02:03]} 19. Nf3 {[%clk 0:02:13]}  b6 {[%clk 0:02:03]} 20. Na4 {[%clk 0:02:11]}  Qc6 {[%clk 0:02:01]} 21. Bf4 {[%clk 0:02:03]}  Ng6 {[%clk 0:01:56]} 22. Bg3 {[%clk 0:01:59]}  Bxg3 {[%clk 0:01:48]} 23. fxg3 {[%clk 0:01:56]}  Rac8 {[%clk 0:01:48]} 24. h4 {[%clk 0:01:54]}  Nh8 {[%clk 0:01:38]} 25. Re7 {[%clk 0:01:50]}  Re8 {[%clk 0:01:31]} 26. Rae1 {[%clk 0:01:49]}  Rxe7 {[%clk 0:01:31]} 27. Rxe7 {[%clk 0:01:50]}  Nf7 {[%clk 0:01:27]} 28. h5 {[%clk 0:01:43]}  Rc7 {[%clk 0:01:06]} 29. Qe3 {[%clk 0:01:36]}  Rxe7 {[%clk 0:01:04]} 30. Qxe7 {[%clk 0:01:37]}  Nbd6 {[%clk 0:01:04]} 31. Nc5 {[%clk 0:01:01]}  bxc5 {[%clk 0:00:59]} 32. dxc5 {[%clk 0:01:01]}  Nc8 {[%clk 0:00:49]} 33. Qe2 {[%clk 0:00:51]}  Na7 {[%clk 0:00:28]} 34. Nd4 {[%clk 0:00:50]}  Qc8 {[%clk 0:00:28]} 35. Qf3 {[%clk 0:00:40]}  Qd7 {[%clk 0:00:24]} 36. Qd3 {[%clk 0:00:37]}  Nb5 {[%clk 0:00:23]} 37. c6 {[%clk 0:00:32]}  Qd6 {[%clk 0:00:17]} 38. Nxb5 {[%clk 0:00:30]}  axb5 {[%clk 0:00:17]} 39. Qxb5 {[%clk 0:00:31]}  g6 {[%clk 0:00:16]} 40. Qb7 {[%clk 0:00:29]}  Qxg3 {[%clk 0:00:15]} 41. c7 {[%clk 0:00:21]}  Qe1+ {[%clk 0:00:15]} 42. Kh2 {[%clk 0:00:22]}  Qh4+ {[%clk 0:00:15]} 43. Kg1 {[%clk 0:00:22]}  Qe1+ {[%clk 0:00:16]} 44. Kh2 {[%clk 0:00:23]}  Qh4+ {[%clk 0:00:16]} 45. Kg1 {[%clk 0:00:23]}  Qe1+ {[%clk 0:00:16]} 1/2-1/2


[Site "https://www.chess.com"]

[Event "Titled Tuesday Blitz August 17 2021"]
[White "Vlassov, Nikolai"]
[Black "Cunjalo, Faris"]
[WhiteFideId "4103360"]
[BlackFideId "14410710"]
[WhiteElo "2407"]
[BlackElo "2234"]
[Result "0-1"]
[Round "11"]
[TimeControl "180+1"]
[Date "2021.08.17"]
[WhiteClock "0:00:04"]
[BlackClock "0:00:07"]

1. e4 {[%clk 0:03:00]}  c5 {[%clk 0:02:57]} 2. c3 {[%clk 0:03:00]}  Nc6 {[%clk 0:02:58]} 3. d4 {[%clk 0:03:00]}  cxd4 {[%clk 0:02:59]} 4. cxd4 {[%clk 0:03:01]}  d5 {[%clk 0:03:00]} 5. exd5 {[%clk 0:02:59]}  Qxd5 {[%clk 0:03:01]} 6. Nf3 {[%clk 0:03:00]}  e6 {[%clk 0:03:01]} 7. a3 {[%clk 0:02:59]}  Nf6 {[%clk 0:03:01]} 8. Nc3 {[%clk 0:02:59]}  Qd8 {[%clk 0:03:02]} 9. Be3 {[%clk 0:02:58]}  Be7 {[%clk 0:03:02]} 10. Qc2 {[%clk 0:02:58]}  O-O {[%clk 0:03:03]} 11. Bd3 {[%clk 0:02:57]}  b6 {[%clk 0:03:03]} 12. Ne4 {[%clk 0:02:57]}  Bb7 {[%clk 0:02:52]} 13. Nxf6+ {[%clk 0:02:57]}  Bxf6 {[%clk 0:02:52]} 14. Bxh7+ {[%clk 0:02:57]}  Kh8 {[%clk 0:02:53]} 15. Be4 {[%clk 0:02:58]}  Rc8 {[%clk 0:02:54]} 16. Qe2 {[%clk 0:02:57]}  g6 {[%clk 0:02:49]} 17. Rd1 {[%clk 0:02:53]}  Qc7 {[%clk 0:02:45]} 18. h4 {[%clk 0:02:48]}  Ne7 {[%clk 0:02:44]} 19. Bh6 {[%clk 0:02:38]}  Rfd8 {[%clk 0:02:35]} 20. h5 {[%clk 0:02:37]}  Bxe4 {[%clk 0:02:28]} 21. Qxe4 {[%clk 0:02:37]}  Qc2 {[%clk 0:02:29]} 22. Qxc2 {[%clk 0:02:25]}  Rxc2 {[%clk 0:02:28]} 23. hxg6 {[%clk 0:02:26]}  Nxg6 {[%clk 0:02:29]} 24. Bd2+ {[%clk 0:02:04]}  Kg7 {[%clk 0:02:26]} 25. Bc3 {[%clk 0:02:04]}  Nf4 {[%clk 0:02:22]} 26. Kf1 {[%clk 0:01:58]}  Nd5 {[%clk 0:02:14]} 27. Rd3 {[%clk 0:01:40]}  Nxc3 {[%clk 0:01:52]} 28. bxc3 {[%clk 0:01:37]}  Rc8 {[%clk 0:01:52]} 29. Rh3 {[%clk 0:01:15]}  R2xc3 {[%clk 0:01:48]} 30. Ne5 {[%clk 0:01:10]}  Rc1+ {[%clk 0:01:15]} 31. Ke2 {[%clk 0:01:09]}  R8c2+ {[%clk 0:01:16]} 32. Rd2 {[%clk 0:00:55]}  b5 {[%clk 0:00:39]} 33. Rg3+ {[%clk 0:00:47]}  Kf8 {[%clk 0:00:38]} 34. Nd7+ {[%clk 0:00:31]}  Ke7 {[%clk 0:00:38]} 35. Nxf6 {[%clk 0:00:28]}  Kxf6 {[%clk 0:00:39]} 36. Rg8 {[%clk 0:00:21]}  Rxd2+ {[%clk 0:00:36]} 37. Kxd2 {[%clk 0:00:21]}  Ra1 {[%clk 0:00:36]} 38. Rg3 {[%clk 0:00:17]}  Ra2+ {[%clk 0:00:37]} 39. Ke1 {[%clk 0:00:17]}  Kf5 {[%clk 0:00:19]} 40. Rf3+ {[%clk 0:00:17]}  Ke4 {[%clk 0:00:20]} 41. Rxf7 {[%clk 0:00:17]}  Rxa3 {[%clk 0:00:19]} 42. g4 {[%clk 0:00:16]}  a5 {[%clk 0:00:16]} 43. g5 {[%clk 0:00:16]}  Ra1+ {[%clk 0:00:15]} 44. Ke2 {[%clk 0:00:16]}  Rg1 {[%clk 0:00:14]} 45. f3+ {[%clk 0:00:09]}  Kxd4 {[%clk 0:00:13]} 46. Rg7 {[%clk 0:00:07]}  a4 {[%clk 0:00:09]} 47. Kf2 {[%clk 0:00:07]}  Rc1 {[%clk 0:00:09]} 48. Rd7+ {[%clk 0:00:04]}  Ke5 {[%clk 0:00:09]} 49. Ra7 {[%clk 0:00:04]}  Kf4 {[%clk 0:00:07]} 50. g6 {[%clk 0:00:04]}  Rc2+ {[%clk 0:00:07]} 51. Ke1 {[%clk 0:00:04]}  Rg2 {[%clk 0:00:06]} 52. g7 {[%clk 0:00:04]}  Kxf3 {[%clk 0:00:07]} 0-1


[Site "https://www.chess.com"]

[Event "Titled Tuesday Blitz August 17 2021"]
[White "Von Buelow, Georg"]
[Black "Wagner, Dinara"]
[WhiteFideId "4620658"]
[BlackFideId "24157570"]
[WhiteElo "2195"]
[BlackElo "2260"]
[Result "1-0"]
[Round "11"]
[TimeControl "180+1"]
[Date "2021.08.18"]
[WhiteClock "0:00:10"]
[BlackClock "0:00:18"]

1. e4 {[%clk 0:03:00]}  c5 {[%clk 0:02:59]} 2. Nf3 {[%clk 0:02:59]}  d6 {[%clk 0:03:00]} 3. d4 {[%clk 0:03:00]}  cxd4 {[%clk 0:03:00]} 4. Nxd4 {[%clk 0:02:59]}  Nf6 {[%clk 0:03:01]} 5. Nc3 {[%clk 0:03:00]}  a6 {[%clk 0:03:01]} 6. f4 {[%clk 0:02:59]}  e6 {[%clk 0:02:55]} 7. Qf3 {[%clk 0:02:58]}  Be7 {[%clk 0:02:54]} 8. g4 {[%clk 0:02:56]}  Qc7 {[%clk 0:02:51]} 9. g5 {[%clk 0:02:56]}  Nfd7 {[%clk 0:02:51]} 10. Be3 {[%clk 0:02:56]}  b5 {[%clk 0:02:44]} 11. Bd3 {[%clk 0:02:54]}  Bb7 {[%clk 0:02:44]} 12. O-O-O {[%clk 0:02:53]}  Nc6 {[%clk 0:02:44]} 13. Kb1 {[%clk 0:02:53]}  Rc8 {[%clk 0:02:36]} 14. h4 {[%clk 0:02:51]}  Nc5 {[%clk 0:02:31]} 15. h5 {[%clk 0:02:48]}  Nxd4 {[%clk 0:02:27]} 16. Bxd4 {[%clk 0:02:47]}  b4 {[%clk 0:02:26]} 17. Ne2 {[%clk 0:02:45]}  e5 {[%clk 0:02:23]} 18. Be3 {[%clk 0:02:34]}  b3 {[%clk 0:02:06]} 19. Bxc5 {[%clk 0:01:58]}  bxc2+ {[%clk 0:01:58]} 20. Bxc2 {[%clk 0:01:58]}  Qxc5 {[%clk 0:01:58]} 21. Nc3 {[%clk 0:01:57]}  Qb6 {[%clk 0:01:44]} 22. Ba4+ {[%clk 0:01:44]}  Bc6 {[%clk 0:01:33]} 23. Bxc6+ {[%clk 0:01:42]}  Rxc6 {[%clk 0:01:29]} 24. f5 {[%clk 0:01:42]}  Bxg5 {[%clk 0:01:25]} 25. Rhg1 {[%clk 0:01:41]}  f6 {[%clk 0:01:17]} 26. Nd5 {[%clk 0:01:35]}  Qb7 {[%clk 0:01:17]} 27. h6 {[%clk 0:01:34]}  O-O {[%clk 0:01:07]} 28. hxg7 {[%clk 0:01:34]}  Kxg7 {[%clk 0:01:06]} 29. Qh5 {[%clk 0:01:29]}  Kh8 {[%clk 0:01:02]} 30. Rg2 {[%clk 0:01:20]}  Rc4 {[%clk 0:01:00]} 31. Re2 {[%clk 0:01:11]}  Rb8 {[%clk 0:00:56]} 32. b3 {[%clk 0:00:42]}  a5 {[%clk 0:00:49]} 33. Ka1 {[%clk 0:00:41]}  Rd4 {[%clk 0:00:45]} 34. Rh1 {[%clk 0:00:37]}  Rf8 {[%clk 0:00:27]} 35. Reh2 {[%clk 0:00:24]}  Rf7 {[%clk 0:00:27]} 36. Qe2 {[%clk 0:00:20]}  a4 {[%clk 0:00:26]} 37. bxa4 {[%clk 0:00:19]}  Rd2 {[%clk 0:00:26]} 38. Qb5 {[%clk 0:00:12]}  Qa7 {[%clk 0:00:18]} 39. Qe8+ {[%clk 0:00:10]}  Kg7 {[%clk 0:00:18]} 40. Rxh7# {[%clk 0:00:10]} 1-0


[Site "https://www.chess.com"]

[Event "Titled Tuesday Blitz August 17 2021"]
[White "Waddingham, Graham A"]
[Black "Kislov, Oleg"]
[WhiteFideId "400653"]
[BlackFideId "13503774"]
[WhiteElo "2366"]
[BlackElo "2252"]
[Result "0-1"]
[Round "11"]
[TimeControl "180+1"]
[Date "2021.08.17"]
[WhiteClock "0:00:07"]
[BlackClock "0:00:31"]

1. e4 {[%clk 0:03:00]}  c5 {[%clk 0:02:58]} 2. f4 {[%clk 0:03:00]}  d5 {[%clk 0:02:52]} 3. exd5 {[%clk 0:02:59]}  Nf6 {[%clk 0:02:53]} 4. Nc3 {[%clk 0:03:00]}  Nxd5 {[%clk 0:02:52]} 5. Bb5+ {[%clk 0:03:00]}  Nc6 {[%clk 0:02:51]} 6. Qf3 {[%clk 0:02:59]}  e6 {[%clk 0:02:44]} 7. Bxc6+ {[%clk 0:02:52]}  bxc6 {[%clk 0:02:44]} 8. d3 {[%clk 0:02:51]}  Nb4 {[%clk 0:02:38]} 9. Qf2 {[%clk 0:02:40]}  Qd4 {[%clk 0:02:38]} 10. Qd2 {[%clk 0:02:39]}  Bd6 {[%clk 0:02:25]} 11. Nge2 {[%clk 0:02:32]}  Qf6 {[%clk 0:02:22]} 12. O-O {[%clk 0:01:59]}  Qe7 {[%clk 0:02:11]} 13. Ne4 {[%clk 0:01:44]}  Bc7 {[%clk 0:02:06]} 14. a3 {[%clk 0:01:25]}  Nd5 {[%clk 0:02:04]} 15. c4 {[%clk 0:01:24]}  Nf6 {[%clk 0:02:01]} 16. N2c3 {[%clk 0:01:19]}  O-O {[%clk 0:01:59]} 17. Qf2 {[%clk 0:01:13]}  Rd8 {[%clk 0:01:52]} 18. Rd1 {[%clk 0:01:07]}  Nxe4 {[%clk 0:01:50]} 19. Nxe4 {[%clk 0:01:05]}  f5 {[%clk 0:01:48]} 20. Nxc5 {[%clk 0:00:53]}  Bb6 {[%clk 0:01:20]} 21. Be3 {[%clk 0:00:52]}  e5 {[%clk 0:01:16]} 22. fxe5 {[%clk 0:00:40]}  f4 {[%clk 0:01:10]} 23. Qxf4 {[%clk 0:00:24]}  Bxc5 {[%clk 0:01:09]} 24. d4 {[%clk 0:00:24]}  Bb6 {[%clk 0:01:09]} 25. Rd3 {[%clk 0:00:17]}  Be6 {[%clk 0:01:07]} 26. b3 {[%clk 0:00:16]}  Rf8 {[%clk 0:00:59]} 27. Qg3 {[%clk 0:00:15]}  Rad8 {[%clk 0:00:56]} 28. Rad1 {[%clk 0:00:14]}  Bf5 {[%clk 0:00:56]} 29. R3d2 {[%clk 0:00:13]}  Qxa3 {[%clk 0:00:51]} 30. Bh6 {[%clk 0:00:08]}  Rf7 {[%clk 0:00:41]} 31. Bg5 {[%clk 0:00:07]}  Rxd4 {[%clk 0:00:31]} 0-1


[Site "https://www.chess.com"]